bitfinex-derivatives/quotes_BTCF0:USTF0_20250508
["timestamp","ask_amount","ask_price","bid_price","bid_amount"]
[1746679923307,0.8115203,99044.0,99043.0,0.05]
[1746679923708,1.3615203,99044.0,99043.0,0.051]
[1746679923912,1.3625203,99044.0,99043.0,0.051]
[1746679925113,1.3625203,99044.0,99043.0,0.05]
[1746679925410,1.3635203,99044.0,99043.0,0.05]
[1746679925815,0.2508,99044.0,99043.0,0.5428863]
[1746679926019,0.2508,99044.0,99043.0,1.0670863]
[1746679926213,0.2019203,99044.0,99043.0,0.8742863]
[1746679926613,0.2019203,99044.0,99043.0,0.9938863]
[1746679926819,0.2019164,99046.0,99045.0,0.2019162]
[1746679927015,0.55,99057.0,99053.0,0.0504755]
[1746679927213,0.55,99057.0,99056.0,0.2018958]
[1746679927413,0.55,99057.0,99056.0,0.5018958]
[1746679927614,0.7518938,99057.0,99056.0,0.3]
[1746679927814,0.2018938,99057.0,99056.0,0.3]
[1746679928910,0.2018979,99055.0,99054.0,0.1196]
[1746679929112,0.7306979,99055.0,99054.0,0.1496]
[1746679929326,0.7306979,99055.0,99054.0,0.0908]
[1746679929618,0.8479979,99055.0,99054.0,0.0908]
[1746679930025,0.8489979,99055.0,99054.0,0.031]
[1746679930223,1.3989979,99055.0,99054.0,0.031]
[1746679930524,0.2019346,99037.0,99036.0,0.0553]
[1746679930826,0.2019346,99037.0,99036.0,0.4523366]
[1746679931219,0.8094346,99037.0,99036.0,0.5357366]
[1746679931622,0.8104346,99037.0,99036.0,0.4533366]
[1746679931925,0.8104346,99037.0,99036.0,0.5367366]
[1746679932225,0.9784346,99037.0,99036.0,0.5367366]
[1746679932420,0.9794346,99037.0,99036.0,0.5377366]
[1746679932626,0.9794346,99037.0,99036.0,0.3358]
[1746679932820,0.9794346,99037.0,99036.0,0.5377366]
[1746679933023,0.9219346,99037.0,99036.0,0.5377366]
[1746679933227,0.72,99037.0,99036.0,0.5377366]
[1746679933531,0.17,99037.0,99036.0,0.73870859]
[1746679933723,0.17,99037.0,99036.0,0.74870859]
[1746679934229,0.002,99037.0,99036.0,0.91670859]
[1746679935925,0.5647346,99037.0,99036.0,0.6038]
[1746679936121,0.7327346,99037.0,99036.0,0.6377366]
[1746679937232,0.5647346,99037.0,99036.0,0.6377366]
[1746679937533,0.5647346,99037.0,99036.0,0.5377366]
[1746679938024,0.2039346,99037.0,99036.0,0.5377366]
[1746679938629,0.002,99037.0,99036.0,0.5377366]
[1746679939222,0.002,99037.0,99036.0,0.7057366]
[1746679939430,0.2039346,99037.0,99036.0,0.7057366]
[1746679939936,0.002,99037.0,99036.0,0.7057366]
[1746679940135,0.002,99037.0,99036.0,0.5377366]
[1746679940732,0.2039346,99037.0,99036.0,0.5377366]
[1746679941133,0.002,99037.0,99036.0,0.5377366]
[1746679942440,0.2039346,99037.0,99036.0,0.5377366]
[1746679942832,0.002,99037.0,99036.0,0.5377366]
[1746679943236,0.002,99037.0,99036.0,0.7057366]
[1746679943432,0.2517081,99050.0,99049.0,0.2019101]
[1746679943643,0.3110081,99050.0,99049.0,0.3419101]
[1746679944938,0.3130081,99050.0,99049.0,0.3429101]
[1746679950333,0.3130081,99050.0,99049.0,0.141]
[1746679950733,0.3130081,99050.0,99049.0,0.2507]
[1746679951241,0.3130081,99050.0,99049.0,0.4526101]
[1746679952138,0.3130081,99050.0,99049.0,0.4536101]
[1746679952940,0.3130081,99050.0,99049.0,0.4546101]
[1746679958348,0.1111,99050.0,99049.0,0.4546101]
[1746679958539,0.0518,99050.0,99049.0,0.5855701]
[1746679958738,0.0518,99050.0,99049.0,0.6655701]
[1746679959141,0.0518,99050.0,99049.0,0.8335701]
[1746679959347,0.002,99050.0,99049.0,0.8335701]
[1746679961544,0.002,99050.0,99049.0,0.7326101]
[1746679963140,0.3608,99080.0,99057.0,0.0504734]
[1746679963349,0.0584,99060.0,99059.0,0.2523616]
[1746679963644,0.0568,99068.0,99067.0,0.2018734]
[1746679963841,0.0568,99068.0,99067.0,0.59720547]
[1746679964347,0.0568,99068.0,99067.0,0.76520547]
[1746679964544,0.2586714,99068.0,99067.0,0.67763207]
[1746679964748,0.2586714,99068.0,99067.0,0.87950547]
[1746679965164,0.2596714,99068.0,99067.0,0.45303207]
[1746679965449,0.2596714,99068.0,99067.0,0.39533207]
[1746679966841,0.2606714,99068.0,99067.0,0.39633207]
[1746679967247,0.2606714,99068.0,99067.0,0.45063207]
[1746679968040,0.2606714,99068.0,99067.0,0.65250547]
[1746679968243,0.2606714,99068.0,99067.0,0.70940547]
[1746679968445,0.2606714,99068.0,99067.0,0.50753207]
[1746679968951,0.2606714,99068.0,99067.0,0.70940547]
[1746679969149,0.2606714,99068.0,99067.0,0.50753207]
[1746679970455,0.2606714,99068.0,99067.0,0.70940547]
[1746679970846,0.2606714,99068.0,99067.0,0.50753207]
[1746679971046,0.2606714,99068.0,99067.0,0.70940547]
[1746679971456,0.2606714,99068.0,99067.0,0.50753207]
[1746679971856,0.2606714,99068.0,99067.0,0.45063207]
[1746679973350,0.2038714,99068.0,99067.0,0.45063207]
[1746679974057,0.3143714,99068.0,99067.0,0.65250547]
[1746679974363,0.3143714,99068.0,99067.0,0.45063207]
[1746679976147,0.4823714,99068.0,99067.0,0.08604]
[1746679976344,0.0504712,99062.0,99057.0,0.14]
[1746679976549,0.5626918,99058.0,99057.0,0.17]
[1746679976752,0.5626918,99058.0,99057.0,0.25504]
[1746679977056,1.1126918,99058.0,99057.0,0.25504]
[1746679977256,1.2806918,99058.0,99057.0,0.25504]
[1746679977557,1.2806918,99058.0,99057.0,0.25804]
[1746679977751,1.2816918,99058.0,99057.0,0.25904]
[1746679977954,1.2816918,99058.0,99057.0,0.174]
[1746679978153,1.2806918,99058.0,99057.0,0.17]
[1746679978348,1.7846918,99058.0,99057.0,0.171]
[1746679979860,1.7836918,99058.0,99057.0,0.172]
[1746679980354,1.7826918,99058.0,99057.0,0.171]
[1746679980561,1.7846918,99058.0,99057.0,0.171]
[1746679980760,1.7846918,99058.0,99057.0,0.17]
[1746679980956,1.8836438,99058.0,99057.0,0.17]
[1746679981164,0.0504764,99052.0,99035.0,0.00100974]
[1746679981459,0.2019247,99042.0,99041.0,0.2019244]
[1746679981763,0.3679845,99051.0,99050.0,0.2019081]
[1746679981965,0.0504751,99054.0,99053.0,0.201902]
[1746679982265,0.2038933,99058.0,99057.0,0.2018938]
[1746679982454,0.2038933,99058.0,99057.0,0.8926938]
[1746679983061,0.002,99058.0,99057.0,0.8926938]
[1746679983267,0.002,99058.0,99057.0,0.9593938]
[1746679983653,0.0498,99063.0,99062.0,0.2018836]
[1746679983860,0.0498,99063.0,99062.0,0.5518836]
[1746679984262,0.0504691,99066.0,99065.0,0.2018775]
[1746679984456,0.2018755,99068.0,99067.0,0.2523376]
[1746679984652,0.2018755,99068.0,99067.0,0.5823376]
[1746679984856,0.2018755,99068.0,99067.0,0.09]
[1746679985255,0.2018755,99068.0,99067.0,0.06]
[1746679985451,0.3090755,99068.0,99067.0,0.06]
[1746679985860,0.3100755,99068.0,99067.0,0.061]
[1746679987167,0.3110755,99068.0,99067.0,0.062]
[1746679988459,0.1092,99068.0,99067.0,0.062]
[1746679988660,0.002,99068.0,99067.0,0.5438734]
[1746679989067,0.2038714,99068.0,99067.0,0.5438734]
[1746679989268,0.2038714,99068.0,99067.0,0.7118734]
[1746679989469,0.2038714,99068.0,99067.0,0.51]
[1746679989767,0.2038714,99068.0,99067.0,0.7118734]
[1746679990368,0.3119714,99068.0,99067.0,0.72194822]
[1746679992273,0.3119714,99068.0,99067.0,0.03]
[1746679992570,0.2018918,99058.0,99057.0,0.0001]
[1746679992763,0.2018909,99060.0,99059.0,0.2018877]
[1746679993071,0.2018827,99063.0,99062.0,0.2018816]
[1746679993373,0.2018827,99063.0,99062.0,0.15]
[1746679993570,0.2561827,99063.0,99062.0,0.15]
[1746679993772,0.2561827,99063.0,99062.0,0.3518836]
[1746679993965,0.2561827,99063.0,99062.0,0.4355236]
[1746679994165,0.2561827,99063.0,99062.0,0.6035236]
[1746679994367,0.2571827,99063.0,99062.0,0.6045236]
[1746679994974,0.2581827,99063.0,99062.0,0.6055236]
[1746679995374,0.2038827,99063.0,99062.0,0.6055236]
[1746679996370,0.2028827,99063.0,99062.0,0.6035236]
[1746679996573,0.2038827,99063.0,99062.0,0.7135236]
[1746679997176,0.2028827,99063.0,99062.0,0.7135236]
[1746679997376,0.2038827,99063.0,99062.0,0.7135236]
[1746679997977,0.2028827,99063.0,99062.0,0.51164]
[1746679998177,0.2038827,99063.0,99062.0,0.51164]
[1746679998972,0.2038827,99063.0,99062.0,0.50164]
[1746679999172,0.2038827,99063.0,99062.0,0.33364]
[1746680000479,0.2038827,99063.0,99062.0,0.33464]
[1746680001671,0.2038827,99063.0,99062.0,0.23464]
[1746680002282,0.5646827,99063.0,99062.0,0.151]
[1746680002579,0.6656307,99063.0,99062.0,0.151]
[1746680003174,0.8336307,99063.0,99062.0,0.151]
[1746680004680,0.0504767,99051.0,99033.0,0.08364]
[1746680004880,0.9235325,99038.0,99037.0,0.0801]
[1746680005178,0.5627325,99038.0,99037.0,0.4500346]
[1746680005877,0.6249325,99038.0,99037.0,0.4500346]
[1746680006080,0.6249325,99038.0,99037.0,0.22404]
[1746680006280,0.6249325,99038.0,99037.0,0.16374]
[1746680006878,0.6259325,99038.0,99037.0,0.0811]
[1746680007185,0.7949325,99038.0,99037.0,0.0811]
[1746680007385,0.7949325,99038.0,99037.0,0.0313]
[1746680007576,0.7949325,99038.0,99037.0,0.001]
[1746680007883,1.3565325,99038.0,99037.0,0.001]
[1746680008078,0.2019366,99036.0,99035.0,0.00100974]
[1746680008276,0.28175296,99033.0,99032.0,0.08364]
[1746680009187,0.44975296,99033.0,99032.0,0.08364]
[1746680009782,0.94975296,99033.0,99032.0,0.08364]
[1746680009984,0.2019448,99032.0,99031.0,0.0001]
[1746680010191,0.3318448,99032.0,99031.0,0.0001]
[1746680011183,0.5008448,99032.0,99031.0,0.0011]
[1746680011680,0.5018448,99032.0,99031.0,0.0011]
[1746680011883,1.0018448,99032.0,99031.0,0.0011]
[1746680014988,0.67,99032.0,99031.0,0.3330468]
[1746680015284,0.7039448,99032.0,99031.0,0.5010468]
[1746680015589,0.2039448,99032.0,99031.0,0.51158248]
[1746680016088,0.2039448,99032.0,99031.0,0.63738248]
[1746680016589,0.2039448,99032.0,99031.0,0.6268468]
[1746680016792,0.2039448,99032.0,99031.0,0.4249]
[1746680017186,0.3295448,99032.0,99031.0,0.1926]
[1746680017881,0.8295448,99032.0,99031.0,0.1926]
[1746680018978,0.8295448,99032.0,99031.0,0.1311]
[1746680019490,0.7645448,99032.0,99031.0,0.1311]
[1746680020179,0.7039448,99032.0,99031.0,0.5010468]
[1746680021385,0.2039448,99032.0,99031.0,0.2991]
[1746680021584,0.3277448,99032.0,99031.0,0.2991]
[1746680022292,0.3277448,99032.0,99031.0,0.1311]
[1746680028392,0.3277448,99032.0,99031.0,0.0011]
[1746680029291,0.2019611,99024.0,99023.0,0.04900464]
[1746680029486,0.2019611,99024.0,99023.0,0.22900464]
[1746680030093,0.3335611,99024.0,99023.0,0.22900464]
[1746680030488,0.3345611,99024.0,99023.0,0.22900464]
[1746680030693,0.3355611,99024.0,99023.0,0.23000464]
[1746680035691,0.3385611,99024.0,99023.0,0.181]
[1746680036698,0.3375611,99024.0,99023.0,0.18]
[1746680036998,0.3415611,99024.0,99023.0,0.18]
[1746680038092,0.8415611,99024.0,99023.0,0.18]
[1746680038402,0.8415611,99024.0,99023.0,0.09918]
[1746680038599,0.2019713,99019.0,99018.0,0.1221]
[1746680038799,0.2019713,99019.0,99018.0,0.1421]
[1746680039195,0.2019713,99019.0,99018.0,0.3101]
[1746680039699,0.3239713,99019.0,99018.0,0.3101]
[1746680040396,0.3269713,99019.0,99018.0,0.3101]
[1746680040600,0.3299713,99019.0,99018.0,0.3101]
[1746680040899,0.3299713,99019.0,99018.0,0.2479]
[1746680041099,0.3299713,99019.0,99018.0,0.188]
[1746680041296,0.3299713,99019.0,99018.0,0.168]
[1746680041488,0.3953713,99019.0,99018.0,0.168]
[1746680041894,0.8953713,99019.0,99018.0,0.168]
[1746680042199,0.8953713,99019.0,99012.0,0.04667488]
[1746680042200,0.0504938,99017.0,99012.0,0.04667488]
[1746680042507,0.2019835,99013.0,99012.0,0.04667488]
[1746680042712,0.2019835,99013.0,99012.0,0.11207488]
[1746680043787,0.7019835,99013.0,99012.0,0.11207488]
[1746680044895,0.7039835,99013.0,99012.0,0.11207488]
[1746680045995,0.7059835,99013.0,99012.0,0.11207488]
[1746680050007,0.7059835,99013.0,99012.0,0.17377488]
[1746680050195,0.7059835,99013.0,99012.0,0.66376048]
[1746680050395,1.0667835,99013.0,99012.0,0.45177488]
[1746680050600,0.5667835,99013.0,99012.0,0.39007488]
[1746680051196,0.6908835,99013.0,99012.0,0.22207488]
[1746680051803,0.6908835,99013.0,99012.0,0.15667488]
[1746680052505,0.2019856,99012.0,99011.0,0.0001]
[1746680052808,0.3029816,99012.0,99011.0,0.0001]
[1746680053012,0.4326816,99012.0,99011.0,0.0001]
[1746680054210,0.4346816,99012.0,99011.0,0.0001]
[1746680054511,0.4366816,99012.0,99011.0,0.0001]
[1746680055214,0.9366816,99012.0,99011.0,0.0001]
[1746680056606,0.7715856,99012.0,99011.0,0.0001]
[1746680057312,0.7715856,99012.0,99011.0,0.1681]
[1746680059106,0.7715856,99012.0,99011.0,0.0001]
[1746680060015,0.7715856,99012.0,99011.0,0.2020876]
[1746680060205,0.7715856,99012.0,99011.0,0.3700876]
[1746680060409,0.7715856,99012.0,99011.0,0.1681]
[1746680062813,0.7715856,99012.0,99011.0,0.3700876]
[1746680064112,0.2715856,99012.0,99011.0,0.3700876]
[1746680065019,0.2715856,99012.0,99011.0,0.5200876]
[1746680066321,0.2715856,99012.0,99011.0,0.3181]
[1746680068522,0.2715856,99012.0,99011.0,0.5200876]
[1746680069726,0.2715856,99012.0,99011.0,0.3181]
[1746680071231,0.2715856,99012.0,99011.0,0.4483]
[1746680074629,0.2715856,99012.0,99011.0,0.6502876]
[1746680074835,0.004,99012.0,99011.0,0.8002876]
[1746680075026,0.004,99012.0,99011.0,0.8602876]
[1746680075425,0.004,99012.0,99011.0,0.9612876]
[1746680079533,0.002,99012.0,99011.0,0.9612876]
[1746680079733,0.003,99012.0,99011.0,0.9612876]
[1746680080133,0.002,99012.0,99011.0,0.9612876]
[1746680080432,0.2039856,99012.0,99011.0,0.9612876]
[1746680081635,0.002,99012.0,99011.0,0.9612876]
[1746680082838,0.001,99012.0,99011.0,0.9612876]
[1746680083046,0.002,99012.0,99011.0,0.9612876]
[1746680083739,0.2039856,99012.0,99011.0,0.9612876]
[1746680083939,0.2029856,99012.0,99011.0,1.0448476]
[1746680084133,0.2039856,99012.0,99011.0,1.0448476]
[1746680085343,0.2039856,99012.0,99011.0,0.84286]
[1746680086542,0.2029856,99012.0,99011.0,0.61656]
[1746680086743,0.2632856,99012.0,99011.0,0.55166]
[1746680086933,0.2642856,99012.0,99011.0,0.55166]
[1746680087134,0.2642856,99012.0,99011.0,0.38366]
[1746680089144,0.2652856,99012.0,99011.0,0.38366]
[1746680089348,0.2642856,99012.0,99011.0,0.38366]
[1746680089548,0.2652856,99012.0,99011.0,0.38366]
[1746680089949,0.2662856,99012.0,99011.0,0.38366]
[1746680090155,0.2662856,99012.0,99011.0,0.55166]
[1746680091345,0.2662856,99012.0,99011.0,0.38366]
[1746680093952,0.2662856,99012.0,99011.0,0.5020876]
[1746680094256,0.2662856,99012.0,99011.0,0.5856476]
[1746680094946,0.0643,99012.0,99011.0,0.5856476]
[1746680095144,0.0643,99012.0,99011.0,0.7536476]
[1746680095343,0.26610786,99012.0,99011.0,0.7536476]
[1746680095546,0.12752226,99012.0,99011.0,0.8782476]
[1746680097649,0.0674,99012.0,99011.0,0.8782476]
[1746680099852,0.2693856,99012.0,99011.0,0.8782476]
[1746680106263,0.2693856,99012.0,99011.0,0.7536476]
[1746680106559,0.0674,99012.0,99011.0,0.7536476]
[1746680106950,0.2693856,99012.0,99011.0,0.7536476]
[1746680107552,0.2693856,99012.0,99011.0,0.8191476]
[1746680109165,0.2693856,99012.0,99011.0,0.6511476]
[1746680110252,0.2693856,99012.0,99011.0,0.8191476]
[1746680114454,0.6301856,99012.0,99011.0,0.4681]
[1746680114652,0.6301856,99012.0,99011.0,0.6600876]
[1746680114856,0.6301856,99012.0,99011.0,0.7435276]
[1746680114857,0.2693856,99012.0,99011.0,0.7435276]
[1746680115256,0.2693856,99012.0,99011.0,0.7735276]
[1746680115667,0.7673856,99012.0,99011.0,0.7735276]
[1746680115865,0.7703856,99012.0,99011.0,0.7735276]
[1746680117058,0.2703856,99012.0,99011.0,0.7735276]
[1746680117258,0.0684,99012.0,99011.0,0.7735276]
[1746680117870,0.2693856,99012.0,99011.0,0.7735276]
[1746680118372,0.0674,99012.0,99011.0,0.7735276]
[1746680119263,0.2693856,99012.0,99011.0,0.7735276]
[1746680121667,0.2693856,99012.0,99011.0,0.57154]
[1746680122866,0.6301856,99012.0,99011.0,0.4881]
[1746680123061,0.6301856,99012.0,99011.0,0.57154]
[1746680123263,0.2693856,99012.0,99011.0,0.40354]
[1746680123567,0.2693856,99012.0,99011.0,0.49354]
[1746680123766,0.8193856,99012.0,99011.0,0.49354]
[1746680123962,0.8193856,99012.0,99011.0,0.40354]
[1746680124974,0.8193856,99012.0,99011.0,0.3201]
[1746680125167,0.8193856,99012.0,99011.0,0.40354]
[1746680126161,0.9873856,99012.0,99011.0,0.40354]
[1746680126767,0.9883856,99012.0,99011.0,0.40354]
[1746680127061,0.8203856,99012.0,99011.0,0.40354]
[1746680127465,1.3828856,99012.0,99011.0,0.40354]
[1746680127669,1.7436856,99012.0,99011.0,0.40354]
[1746680127977,1.1936856,99012.0,99011.0,0.40354]
[1746680128664,1.1946856,99012.0,99011.0,0.40354]
[1746680128875,1.1946856,99012.0,99011.0,0.3201]
[1746680130776,1.2956856,99012.0,99011.0,0.0301]
[1746680130970,1.2956856,99012.0,99011.0,0.0101]
[1746680132170,1.4636856,99012.0,99011.0,0.0101]
[1746680132570,1.4606856,99012.0,99011.0,0.0101]
[1746680132772,1.4636856,99012.0,99011.0,0.0101]
[1746680133073,1.2956856,99012.0,99011.0,0.0101]
[1746680133670,1.1956856,99012.0,99011.0,0.0101]
[1746680134174,1.3636856,99012.0,99011.0,0.0101]
[1746680135179,1.1956856,99012.0,99011.0,0.0101]
[1746680135976,1.1926856,99012.0,99011.0,0.0101]
[1746680136180,1.1966856,99012.0,99011.0,0.2120876]
[1746680136374,1.1966856,99012.0,99011.0,0.0101]
[1746680136775,1.1926856,99012.0,99011.0,0.0101]
[1746680136976,1.1966856,99012.0,99011.0,0.0101]
[1746680139177,0.5714,99012.0,99011.0,0.5220876]
[1746680139478,0.0714,99012.0,99011.0,0.5220876]
[1746680139676,0.2733856,99012.0,99011.0,0.5220876]
[1746680139877,0.2733856,99012.0,99011.0,0.6413876]
[1746680140073,0.2733856,99012.0,99011.0,0.8093876]
[1746680140581,0.008,99012.0,99011.0,0.8093876]
[1746680140878,0.005,99012.0,99011.0,0.9203876]
[1746680141079,0.08082,99017.0,99016.0,0.2019774]
[1746680141279,0.057,99020.0,99019.0,0.2019713]
[1746680141579,0.2589692,99020.0,99019.0,0.5519713]
[1746680141970,0.2589692,99020.0,99019.0,0.6736713]
[1746680142167,0.2589692,99020.0,99019.0,0.8416713]
[1746680142371,0.2599692,99020.0,99019.0,0.8416713]
[1746680142776,0.058,99020.0,99019.0,0.8416713]
[1746680143175,0.001,99020.0,99019.0,0.8416713]
[1746680143777,0.002,99020.0,99019.0,0.8426713]
[1746680144379,0.002,99020.0,99019.0,0.9436633]
[1746680144682,0.002,99020.0,99019.0,0.9836633]
[1746680146184,0.0015,99035.0,99033.0,0.2019427]
[1746680146376,0.0015,99035.0,99033.0,0.6552227]
[1746680147081,0.2827607,99034.0,99033.0,0.9421227]
[1746680147582,0.3446607,99034.0,99033.0,0.9421227]
[1746680147784,0.3446607,99034.0,99033.0,0.95211087]
[1746680148584,0.3466607,99034.0,99033.0,0.95311087]
[1746680148972,0.3456607,99034.0,99033.0,0.95411087]
[1746680149488,0.3446607,99034.0,99033.0,0.95211087]
[1746680149673,0.3456607,99034.0,99033.0,0.95411087]
[1746680149874,0.3466607,99034.0,99033.0,0.95511087]
[1746680151281,0.3456607,99034.0,99033.0,0.95411087]
[1746680151480,0.3466607,99034.0,99033.0,0.95511087]
[1746680158790,0.3466607,99034.0,99033.0,0.75316817]
[1746680158984,0.3466607,99034.0,99033.0,0.72316817]
[1746680159289,0.3466607,99034.0,99033.0,0.92511087]
[1746680159489,0.3466607,99034.0,99033.0,0.72316817]
[1746680159689,0.4069607,99034.0,99033.0,0.72316817]
[1746680160281,0.4069607,99034.0,99033.0,0.191]
[1746680161284,0.4069607,99034.0,99033.0,0.023]
[1746680162089,0.9069607,99034.0,99033.0,0.023]
[1746680164392,0.9069607,99034.0,99033.0,0.4849427]
[1746680164690,0.64472,99034.0,99033.0,0.5549427]
[1746680164992,0.8466607,99034.0,99033.0,0.5549427]
[1746680165193,0.8466607,99034.0,99033.0,0.7229427]
[1746680165792,0.14472,99034.0,99033.0,0.7229427]
[1746680165992,0.3466607,99034.0,99033.0,0.7629427]
[1746680170092,0.14472,99034.0,99033.0,0.7629427]
[1746680170485,0.3466607,99034.0,99033.0,0.7629427]
[1746680171185,0.14472,99034.0,99033.0,0.7629427]
[1746680171381,0.0504725,99059.0,99046.0,0.2019146]
[1746680171690,0.201906,99051.0,99050.0,0.7216]
[1746680171883,0.201906,99051.0,99050.0,1.1216]
[1746680172084,0.201906,99051.0,99050.0,1.2896]
[1746680172391,0.201906,99051.0,99050.0,1.2088]
[1746680172782,0.261506,99051.0,99050.0,1.2088]
[1746680173181,0.261506,99051.0,99050.0,1.4107081]
[1746680173986,0.202906,99051.0,99050.0,1.4117081]
[1746680174792,0.001,99051.0,99050.0,1.4117081]
[1746680175192,0.001,99051.0,99050.0,1.4957881]
[1746680175493,0.202906,99051.0,99050.0,1.4947881]
[1746680175992,0.202906,99051.0,99050.0,1.29288]
[1746680176194,0.201906,99051.0,99050.0,1.29288]
[1746680176394,0.201906,99051.0,99050.0,1.29388]
[1746680176694,0.201906,99051.0,99050.0,1.30136556]
[1746680177698,0.262006,99051.0,99050.0,1.30036556]
[1746680177889,0.262006,99051.0,99050.0,1.21928556]
[1746680178091,0.262006,99051.0,99050.0,1.30236556]
[1746680178292,0.262006,99051.0,99050.0,1.30136556]
[1746680178490,0.263006,99051.0,99050.0,1.30236556]
[1746680179299,0.262006,99051.0,99050.0,1.30236556]
[1746680179493,0.262006,99051.0,99050.0,1.30136556]
[1746680180096,0.262006,99051.0,99050.0,1.30036556]
[1746680181199,0.262006,99051.0,99050.0,1.29936556]
[1746680181803,0.263006,99051.0,99050.0,1.29936556]
[1746680182297,0.263006,99051.0,99050.0,1.30036556]
[1746680182698,0.263006,99051.0,99050.0,1.29936556]
[1746680182898,0.263006,99051.0,99050.0,1.21728556]
[1746680183100,0.263006,99051.0,99050.0,1.30036556]
[1746680184208,0.263006,99051.0,99050.0,1.29936556]
[1746680184506,0.263006,99051.0,99050.0,1.30036556]
[1746680184912,0.263006,99051.0,99050.0,1.29936556]
[1746680185906,0.263006,99051.0,99050.0,1.30036556]
[1746680187508,0.263006,99051.0,99050.0,1.29936556]
[1746680187708,0.263006,99051.0,99050.0,1.30036556]
[1746680188108,0.263006,99051.0,99050.0,1.29936556]
[1746680188309,0.262006,99051.0,99050.0,1.29936556]
[1746680188512,0.263006,99051.0,99050.0,1.29936556]
[1746680189813,0.262006,99051.0,99050.0,1.29936556]
[1746680190017,0.263006,99051.0,99050.0,1.29936556]
[1746680190315,0.263006,99051.0,99050.0,0.85136556]
[1746680190709,0.263006,99051.0,99050.0,0.76828556]
[1746680190911,0.263006,99051.0,99050.0,0.85136556]
[1746680191215,0.263006,99051.0,99050.0,1.01936556]
[1746680191414,0.262006,99051.0,99050.0,1.01936556]
[1746680191607,0.263006,99051.0,99050.0,1.01936556]
[1746680194307,0.263006,99051.0,99050.0,1.02036556]
[1746680194815,0.262006,99051.0,99050.0,1.01936556]
[1746680195014,0.263006,99051.0,99050.0,1.01936556]
[1746680197219,0.263006,99051.0,99050.0,0.85136556]
[1746680198213,0.263006,99051.0,99050.0,1.01936556]
[1746680200216,0.263006,99051.0,99050.0,0.93628556]
[1746680200422,0.263006,99051.0,99050.0,1.01168]
[1746680200719,0.263006,99051.0,99050.0,0.72168]
[1746680201310,0.263006,99051.0,99050.0,0.55368]
[1746680204820,0.263006,99051.0,99050.0,0.4708]
[1746680205015,0.263006,99051.0,99050.0,0.55368]
[1746680205213,0.263006,99051.0,99050.0,0.72168]
[1746680205815,0.263006,99051.0,99050.0,0.6388]
[1746680206013,0.263006,99051.0,99050.0,0.36088]
[1746680206217,0.263006,99051.0,99050.0,0.19288]
[1746680206417,0.763006,99051.0,99050.0,0.19288]
[1746680206922,0.2019427,99033.0,99032.0,0.3608]
[1746680207113,0.2019427,99033.0,99032.0,0.75368]
[1746680207313,0.2019427,99033.0,99032.0,0.73368]
[1746680207917,0.3201427,99033.0,99032.0,0.73368]
[1746680208218,0.3221427,99033.0,99032.0,0.6588]
[1746680208417,0.3221427,99033.0,99032.0,0.74168]
[1746680208922,0.3221427,99033.0,99032.0,0.47168]
[1746680209121,0.3211427,99033.0,99032.0,0.3848]
[1746680209419,0.4221187,99033.0,99032.0,0.024]
[1746680209812,0.9231187,99033.0,99032.0,0.024]
[1746680210326,0.2019529,99028.0,99027.0,0.02606]
[1746680210625,0.2019529,99028.0,99027.0,0.03606]
[1746680211227,0.3218529,99028.0,99027.0,0.03606]
[1746680211521,0.3218529,99028.0,99027.0,0.371955]
[1746680211822,0.2625529,99028.0,99027.0,0.27288]
[1746680212216,0.2625529,99028.0,99027.0,0.44088]
[1746680212521,0.2655529,99028.0,99027.0,0.359]
[1746680212824,0.2655529,99028.0,99027.0,0.44188]
[1746680213024,0.2705529,99028.0,99027.0,0.44188]
[1746680213225,0.2705529,99028.0,99027.0,0.36106]
[1746680213827,0.2695529,99028.0,99027.0,0.36106]
[1746680214225,0.2665529,99028.0,99027.0,0.36106]
[1746680214621,0.2675529,99028.0,99027.0,0.36106]
[1746680214823,0.2675529,99028.0,99027.0,0.41088]
[1746680215027,0.2685529,99028.0,99027.0,0.41088]
[1746680215423,0.2675529,99028.0,99027.0,0.39088]
[1746680215723,0.2695529,99028.0,99027.0,0.39088]
[1746680216125,0.2685529,99028.0,99027.0,0.22288]
[1746680216427,0.6273529,99028.0,99027.0,0.22288]
[1746680216929,0.6243529,99028.0,99027.0,0.22288]
[1746680217227,0.6293529,99028.0,99027.0,0.22288]
[1746680218427,0.6303529,99028.0,99027.0,0.22288]
[1746680218827,0.6313529,99028.0,99027.0,0.22388]
[1746680219223,0.6313529,99028.0,99027.0,0.39188]
[1746680219620,0.2705529,99028.0,99027.0,0.39188]
[1746680220829,0.2705529,99028.0,99027.0,0.51268]
[1746680224230,0.2705529,99028.0,99027.0,0.31106]
[1746680227134,0.2705529,99028.0,99027.0,0.14306]
[1746680227341,0.6313529,99028.0,99027.0,0.14306]
[1746680230742,0.6313529,99028.0,99027.0,0.06018]
[1746680232334,0.2019652,99022.0,99021.0,0.08272]
[1746680233246,0.30295321,99022.0,99021.0,0.0019]
[1746680233543,0.42715321,99022.0,99021.0,0.0019]
[1746680233937,0.92715321,99022.0,99021.0,0.0019]
[1746680234340,0.2808913,99019.0,99018.0,0.0574]
[1746680235538,0.2848913,99019.0,99018.0,0.0574]
[1746680235729,0.7848913,99019.0,99018.0,0.0574]
[1746680235934,0.2019733,99018.0,99017.0,0.00151488]
[1746680236135,0.3173733,99018.0,99017.0,0.00151488]
[1746680237236,0.3173733,99018.0,99017.0,0.16951488]
[1746680237437,0.8173733,99018.0,99017.0,0.16951488]
[1746680238041,0.8203733,99018.0,99017.0,0.16951488]
[1746680239134,0.8203733,99018.0,99017.0,0.00151488]
[1746680243744,0.7629733,99018.0,99017.0,0.00151488]
[1746680244138,0.7629733,99018.0,99017.0,0.16951488]
[1746680245143,0.7629733,99018.0,99017.0,0.17951488]
[1746680245342,0.7629733,99018.0,99017.0,0.27951488]
[1746680248438,0.7629733,99018.0,99017.0,0.16951488]
[1746680250843,0.8207733,99018.0,99017.0,0.16951488]
[1746680251135,0.8207733,99018.0,99017.0,0.53031488]
[1746680258151,0.8207733,99018.0,99017.0,0.36231488]
[1746680259155,0.8207733,99018.0,99017.0,0.53031488]
[1746680263653,0.8217733,99018.0,99017.0,0.53031488]
[1746680264455,0.8227733,99018.0,99017.0,0.53031488]
[1746680265155,0.8197733,99018.0,99017.0,0.53031488]
[1746680265454,0.8227733,99018.0,99017.0,0.53031488]
[1746680266054,0.8207733,99018.0,99017.0,0.53031488]